Cogmind - Beta 9.2 @@@ ROGUE MODE // 2019.11.20 @ 01:29:28 Player: Finestep Result: Destroyed by G-47 Trooper with Particle Gun Performance ------------- Evolutions (0) 0 Regions Visited (4) 800 Robots Destroyed (65) 325 Value Destroyed (963) 963 Prototype IDs (22) 440 Alien Tech Used (0) 0 Bonus (268) 268 TOTAL SCORE: 2796 Bonus ------- Aligned with FarCom 300 Friendly Fire -32 Cogmind --------- Core Integrity 0/250 Matter 208/300 Energy 160/160 System Corruption 1% Temperature Cool (16) Movement Walking (185) Ox2 Location -9/Mines Parts ------- > --- POWER (1) -------- Light Nuclear Core > --- PROPULSION (2) --- Carbon-fiber Leg Improved Titanium Leg > --- UTILITY (2) ------ High-capacity Storage Unit High-capacity Storage Unit > --- WEAPON (2) ------- Light Cannon Rocket Launcher > --- INVENTORY (20) --- Light Angular Momentum Engine Fission Core Armored Wheel Armored Wheel Armored Wheel Armored Wheel Improved Heat Sink High-capacity Storage Unit High-capacity Battery (400) Modified TNC Microactuators Medium Armor Plating Medium Armor Plating Medium Armor Plating Improved Medium Armor Plating Beamcaster Beam Cannon Assault Rifle Greatsword Peak State ------------ > --- POWER ------------ Light Nuclear Core > --- PROPULSION ------- Carbon-fiber Leg Improved Titanium Leg > --- UTILITY ---------- High-capacity Storage Unit High-capacity Storage Unit > --- WEAPON ----------- Light Cannon Rocket Launcher > --- INVENTORY -------- Light Angular Momentum Engine Fission Core Armored Wheel Armored Wheel Armored Wheel Armored Wheel Improved Heat Sink High-capacity Storage Unit High-capacity Battery Modified TNC Microactuators Medium Armor Plating Medium Armor Plating Medium Armor Plating Improved Medium Armor Plating Beamcaster Beam Cannon Assault Rifle Greatsword [Rating: 20] Favorites ----------- Power Light Nuclear Core Engine Improved Ion Engine Power Core Light Nuclear Core Propulsion Carbon-fiber Leg Treads Light Treads Leg Carbon-fiber Leg Wheel Compact Wheel Utility High-capacity Storage Unit Storage High-capacity Storage Unit Weapon Assault Rifle Energy Gun Medium Laser Ballistic Gun Assault Rifle Ballistic Cannon Light Cannon Launcher Rocket Launcher Special Weapon Mining Laser Build | -11 -10 -10 -10 -9 ------- Run | Scr Mat Min Exi Min Slots Evolved . | . . . . . Power . | . . . . . Propulsion . | . . . . . Utility . | . . . . . Weapon . | . . . . . Parts Attached 35 | 8 16 6 . 5 Power 5 | 1 3 1 . . Engine 4 | 1 3 . . . Core 1 | . . 1 . . Reactor . | . . . . . Propulsion 10 | 3 3 2 . 2 Treads 2 | 1 1 . . . Leg 4 | . . 2 . 2 Wheel 4 | 2 2 . . . Hover . | . . . . . Flight . | . . . . . Utility 6 | 1 5 . . . Device . | . . . . . Storage 6 | 1 5 . . . Processor . | . . . . . Hackware . | . . . . . Protection . | . . . . . Artifact . | . . . . . Weapon 14 | 3 5 3 . 3 Energy Gun 3 | 1 2 . . . Energy Cannon . | . . . . . Ballistic Gun 8 | 2 2 3 . 1 Ballistic Cannon 1 | . . . . 1 Launcher 1 | . . . . 1 Special Weapon 1 | . 1 . . . Impact Weapon . | . . . . . Slashing Weapon . | . . . . . Piercing Weapon . | . . . . . Special Melee Weapon . | . . . . . Unidentified Prototypes . | . . . . . Parts Lost 3 | . 2 1 . . Power . | . . . . . Propulsion . | . . . . . Utility . | . . . . . Weapon 3 | . 2 1 . . Highest Loss Streak 1 | . 1 1 . . Average Slot Usage (%) 99 | . 98 100 100 100 Engine 6 | . 14 7 . . Core 7 | . . 6 14 14 Treads 6 | . 14 7 . . Leg 15 | . . 14 28 28 Wheel 6 | . 14 7 . . Storage 27 | . 26 28 28 28 Energy Gun 2 | . 7 . . . Ballistic Gun 21 | . 20 28 28 15 Ballistic Cannon 4 | . . . . 12 Naked Turns . | . . . . . Heaviest Build 75 | 12 75 74 71 74 Greatest Support 35 | 32 20 30 30 35 Greatest Overweight (x) 4 | 3 4 4 2 2 Average Overweight (x) 2 | . 1 3 2 2 Largest Inventory Capacity 20 | 6 20 20 20 20 Average Capacity 18 | 5 14 20 20 20 Most Carried 20 | 6 20 20 20 20 Average Carried 17 | 3 13 19 19 19 Final Capacity 20 | 6 20 20 20 20 Final Carried 20 | 6 19 20 20 20 Class Distribution -------------------- 67% | Hauler-Mutant 16% | Mutant 16% | Scavenger-Mutant Dominant Class ---------------- Mutant | -10/Materials Hauler-Mutant | -10/Mines Scavenger-Mutant | -10/Exiles Hauler-Mutant | -9/Mines Resources | -11 -10 -10 -10 -9 ----------- Run | Scr Mat Min Exi Min Matter Collected 1274 | 292 551 207 2 222 Remotely . | . . . . . Salvage Created 2102 | 107 1186 380 . 429 Parts 121 | 4 66 28 . 23 Haulers Intercepted 1 | . 1 . . . Recyclers Shooed 4 | . 4 . . . Parts Field Recycled . | . . . . . Retrieved Matter . | . . . . . Parts Self-Destructed . | . . . . . Prevented . | . . . . . Kills | -11 -10 -10 -10 -9 ------- Run | Scr Mat Min Exi Min Combat Hostiles Destroyed 35 | . 14 13 . 8 Guns 27 | . 14 13 . . Cannons 3 | . . . . 3 AOE 5 | . . . . 5 Classes Destroyed 11 | 2 7 1 . 1 Worker 7 | . 4 1 . 2 Builder 3 | . 3 . . . Tunneler 2 | 1 . . . 1 Hauler 1 | . 1 . . . Recycler 12 | 1 7 . . 4 Operator 2 | . 2 . . . Watcher 2 | . 2 . . . Swarmer 18 | . 6 9 . 3 Grunt 16 | . 8 4 . 4 Zionite 1 | . . 1 . . Assembled 1 | . . . . 1 Best Kill Streak 8 | 1 8 3 . 8 Combat Bots Only 6 | . 6 3 . 5 Max Kills in Single Turn 5 | 1 1 2 . 5 Gunslinging . | . . . . . Exploded 3 | . . . . 3 Melee . | . . . . . Uniques/NPCs Destroyed . | . . . . . Combat | -11 -10 -10 -10 -9 -------- Run | Scr Mat Min Exi Min Damage Taken 1456 | . 618 441 . 397 Core 264 | . 103 90 . 71 Absorbed by Shields . | . . . . . Core Remaining (%) 100 | 100 . . . . Volleys Fired 192 | 3 112 41 . 36 Largest 2 | 2 2 2 . 2 Hottest 100 | 40 100 40 . 55 Shots Fired 374 | 6 219 80 . 69 Gun 337 | 6 218 80 . 33 Cannon 33 | . . . . 33 Launcher 3 | . . . . 3 Special 1 | . 1 . . . Kinetic 345 | 6 193 80 . 66 Thermal 26 | . 26 . . . Explosive 3 | . . . . 3 Electromagnetic . | . . . . . Robot Hit Streak 15 | 2 15 11 . 8 Robot Miss Streak 5 | 2 5 3 . 4 Penetration Max . | . . . . . Secondary Targets 4 | . 2 2 . . Max Gunslinging Chain 1 | . 1 1 . . Shots Hit Robots 239 | 3 143 57 . 36 Core Hits 105 | 3 58 25 . 19 Critical Hits 1 | . 1 . . . Critical Kills . | . . . . . Critical Parts Destroyed 1 | . 1 . . . Melee Attacks . | . . . . . Impact . | . . . . . Slashing . | . . . . . Piercing . | . . . . . Sneak Attacks . | . . . . . Combat Hostiles . | . . . . . Follow-up Attacks . | . . . . . Damage Inflicted 3212 | 32 1625 588 . 967 Guns 2390 | 32 1625 588 . 145 Cannons 326 | . . . . 326 Explosions 496 | . . . . 496 Melee . | . . . . . Ramming . | . . . . . Kinetic 2478 | 32 1387 588 . 471 Thermal 238 | . 238 . . . Explosive 496 | . . . . 496 Electromagnetic . | . . . . . Impact . | . . . . . Slashing . | . . . . . Piercing . | . . . . . Highest Corruption 1 | . 1 1 1 1 Average Corruption 1 | . 1 1 1 1 Corruption Purged . | . . . . . Effects 10 | . 2 3 1 4 Message Errors 7 | . 1 3 1 2 Energy Discharges 2 | . . . . 2 Data Loss (minor) 1 | . 1 . . . Overload Shots . | . . . . . Overflow Damage 5 | . . . . 5 Projectiles 5 | . . . . 5 Explosions . | . . . . . Melee . | . . . . . Knockbacks 4 | . . . . 4 Impact . | . . . . . Kinetic 4 | . . . . 4 Secondary . | . . . . . Self-Inflicted Damage . | . . . . . Shots . | . . . . . Rammed . | . . . . . Targets Rammed . | . . . . . Kicked . | . . . . . Crushed . | . . . . . Highest Temperature 156 | . 156 17 . 156 Average Temperature 43 | . 45 4 . 82 Received Heat Transfer 548 | . 243 96 . 209 Siege Activations . | . . . . . Robots Corrupted . | . . . . . Combat Hostiles . | . . . . . Parts Fried . | . . . . . Impact Corruptions . | . . . . . Robots Melted . | . . . . . Combat Hostiles . | . . . . . Parts Melted . | . . . . . Heat Transferred 703 | . 703 . . . Parts Sabotaged . | . . . . . Parts Stolen . | . . . . . Parts Stripped . | . . . . . Power Chain Reactions . | . . . . . Missiles Intercepted . | . . . . . Alert | -11 -10 -10 -10 -9 ------- Run | Scr Mat Min Exi Min Peak Influence 208 | 10 208 120 . 125 Average Influence 38 | 3 49 62 . 10 Maximum Alert Level 1 | . 1 . . . Low Security (%) 98 | 100 96 100 . 100 Level 1 1 | . 3 . . . Level 2 . | . . . . . Level 3 . | . . . . . Level 4 . | . . . . . Level 5 . | . . . . . High Security . | . . . . . Max Security . | . . . . . Squads Dispatched 3 | . 3 . . . Investigation . | . . . . . Extermination . | . . . . . Reinforcement 3 | . 3 . . . Assault . | . . . . . Garrison . | . . . . . Intercept . | . . . . . Construction Impeded . | . . . . . Haulers Reinforced . | . . . . . Stealth | -11 -10 -10 -10 -9 --------- Run | Scr Mat Min Exi Min Distress Signals . | . . . . . Communications Jammed . | . . . . . Distress Signals . | . . . . . Times Spotted 57 | . 31 15 . 11 Peak Tracking Total 5 | . 5 3 . 4 Tactical Retreats 6 | . 4 1 . 1 Traps | -11 -10 -10 -10 -9 ------- Run | Scr Mat Min Exi Min Traps Triggered 1 | . 1 . . . Indirectly . | . . . . . Trap Hack Attempts . | . . . . . Triggered . | . . . . . Disarmed . | . . . . . Reprogrammed . | . . . . . Reused . | . . . . . Traps Extracted . | . . . . . Installed . | . . . . . Triggered . | . . . . . Machines | -11 -10 -10 -10 -9 ---------- Run | Scr Mat Min Exi Min Machines Disabled . | . . . . . Max in Single Turn . | . . . . . Machines Sabotaged . | . . . . . Garrisons Compromised . | . . . . . Overloaded Fab Kills . | . . . . . Fab Network Shutdowns . | . . . . . Hacking | -11 -10 -10 -10 -9 --------- Run | Scr Mat Min Exi Min Machines Accessed 8 | . 5 . 2 1 Terminals 4 | . 4 . . . Fabricators . | . . . . . Repair Stations . | . . . . . Recycling Units 1 | . 1 . . . Scanalyzers . | . . . . . Garrison Access . | . . . . . Total Hacks 38 | . 13 . 24 1 Successful 32 | . 7 . 24 1 Failed 6 | . 6 . . . Catastrophic 1 | . 1 . . . Database Lockouts . | . . . . . Manual 4 | . 3 . 1 . Terminals 11 | . 11 . . . Fabricators . | . . . . . Repair Stations . | . . . . . Recycling Units 2 | . 2 . . . Scanalyzers . | . . . . . Garrison Access . | . . . . . Terminal Hacks 30 | . 5 . 24 1 Record 23 | . . . 23 . Robot Schematic 2 | . 2 . . . Open Door 1 | . . . . 1 Unreport Threat 2 | . 2 . . . Zone Layout 1 | . 1 . . . EX-Prototype ID Bank 1 | . . . 1 . Fabricator Hacks . | . . . . . Repair Station Hacks . | . . . . . Recycling Unit Hacks 1 | . 1 . . . Retrieve Components 1 | . 1 . . . Scanalyzer . | . . . . . Garrison Access Hacks . | . . . . . Unauthorized Hacks 2 | . 2 . . . Terminals . | . . . . . Fabricators . | . . . . . Repair Stations . | . . . . . Recycling Units 1 | . 1 . . . Reject 1 | . 1 . . . Scanalyzers . | . . . . . Garrison Access . | . . . . . Data Cores Recovered . | . . . . . Used . | . . . . . Hacking Detections 4 | . 4 . . . Full Trace Events . | . . . . . Feedback Events . | . . . . . Feedback Blocked . | . . . . . Robot Schematics Acquired 2 | . 2 . . . Robots Built . | . . . . . Matter . | . . . . . Time . | . . . . . Total Robot Build Rating . | . . . . . Part Schematics Acquired . | . . . . . Parts Built . | . . . . . Matter . | . . . . . Time . | . . . . . Total Part Build Rating . | . . . . . Parts Repaired . | . . . . . Time . | . . . . . Parts Recycled . | . . . . . Recycled Matter . | . . . . . Retrieved Matter . | . . . . . Retrieved Components 4 | . 4 . . . Parts Scanalyzed . | . . . . . Part Schematics Acquired . | . . . . . Parts Damaged . | . . . . . Bothacking | -11 -10 -10 -10 -9 ------------ Run | Scr Mat Min Exi Min Used RIF Installer . | . . . . . Robots Hacked . | . . . . . Non-combat . | . . . . . Combat . | . . . . . Robot Hacks Applied . | . . . . . Relay Couplers Released . | . . . . . Robots Rewired . | . . . . . Allies Hacked . | . . . . . Hacks Repelled . | . . . . . Allies | -11 -10 -10 -10 -9 -------- Run | Scr Mat Min Exi Min Total Allies 2 | . . 2 . . Largest Group 2 | . . 2 . . Highest-Rated Group 43 | . . 43 . . Highest-Rated Ally 31 | . . 31 . . Total Orders . | . . . . . Ally Attacks 1 | . . 1 . . Total Damage 22 | . . 22 . . Kills . | . . . . . Allies Corrupted . | . . . . . Allies Melted . | . . . . . Intel | -11 -10 -10 -10 -9 ------- Run | Scr Mat Min Exi Min Robot Analysis Total . | . . . . . Derelict Logs Recovered 2 | . . 1 . 1 Drone Launches . | . . . . . Drone Recoveries . | . . . . . Exploration | -11 -10 -10 -10 -9 ------------- Run | Scr Mat Min Exi Min Turns Passed 4046 | 71 1216 1052 416 1291 Spaces Moved 1852 | 47 580 584 230 411 Core 11 | 11 . . . . Treads 178 | . 178 . . . Legs 897 | . . 256 230 411 Wheels 766 | 36 402 328 . . Hover . | . . . . . Flight . | . . . . . Fastest Speed 50 | 50 100 140 180 180 Average Speed 161 | 97 146 157 180 184 Slowest Speed 240 | 200 220 240 180 185 Overloaded Moves . | . . . . . Propulsion Burnouts . | . . . . . Robots Hopped . | . . . . . Cave-ins Triggered . | . . . . . Exploration Rate (%) 64 | 3 92 83 61 81 Regions Visited 4 Branch Regions 3 Pre-discovered Areas 1 | . . . 1 . Known Exits Taken . | . . . . . Unknown Exits Taken 4 | 1 1 1 1 . Scrap Searched 2 | . . 2 . . Spaces Dug 1 | . 1 . . . Terrain Destroyed 26 | . 1 . . 25 Melee . | . . . . . Projectile 1 | . 1 . . . AOE 25 | . . . . 25 Actions | -11 -10 -10 -10 -9 --------- Run | Scr Mat Min Exi Min Total 2574 | 63 750 646 235 880 Wait 424 | . 2 5 . 417 Move 1848 | 46 579 583 229 411 Hop . | . . . . . Pick Up 39 | 4 24 4 3 4 Fast Attach 12 | 8 1 3 . . Attach 4 | . 3 . . 1 Detach 2 | 2 . . . . Swap 19 | . 12 3 . 4 Drop 34 | . 17 7 3 7 Fire 192 | 3 112 41 . 36 Melee . | . . . . . Ram . | . . . . . Kick . | . . . . . Crush . | . . . . . Escape Stasis . | . . . . . Rewire . | . . . . . Trap . | . . . . . Miscellaneous . | . . . . . Route ------- -11/Scrapyard -10/Materials (discovered 4 exits: [*Mat x2] / [*Min x2]) -10/Mines (discovered 3 exits: [*Mat x2] / *Exi) -10/Exiles -9/Mines (discovered 2 exits: [*Mat x2]) History --------- Turn | Location | Event 21 | -11/Scrapyard | Discovered new exit (range 16) 72 | -11/Scrapyard | Entered Materials 74 | -10/Materials | Discovered new exit (range 13) 317 | -10/Materials | Build established: Mutant 337 | -10/Materials | Discovered new exit (range 14) 458 | -10/Materials | Discovered new exit (range 7) 988 | -10/Materials | Build established: Hauler-Mutant 1107 | -10/Materials | Discovered new exit (range 16) 1288 | -10/Materials | Entered Mines 1385 | -10/Mines | Discovered new exit (range 7) 1484 | -10/Mines | Core integrity fell below 50% 1767 | -10/Mines | Discovered new exit (range 5) 2331 | -10/Mines | Deemed a non-threat by the Exiles lab entrance 2333 | -10/Mines | Discovered new exit (range 5) 2340 | -10/Mines | Entered Exiles 2391 | -10/Exiles | Met 8R-AWN 2418 | -10/Exiles | Met EX-HEX 2468 | -10/Exiles | Met EX-BIN 2488 | -10/Exiles | Aligned with FarCom system 2490 | -10/Exiles | Given EX-Vault access code 2510 | -10/Exiles | Build established: Scavenger-Mutant 2531 | -10/Exiles | Opened EX-Vault 2541 | -10/Exiles | Found Modified TNC 2576 | -10/Exiles | Warned to stay clear of 0b10 Research branches 2605 | -10/Exiles | Exiles lab attacked by MAIN.C 2642 | -10/Exiles | Learned location of Zion (-7) 2738 | -10/Exiles | Discovered new exit (range 10) 2756 | -10/Exiles | Left Exiles lab with Modified TNC 2756 | -10/Exiles | Entered Mines 2832 | -9/Mines | Received a Rocket Launcher from a helpful Derelict 2855 | -9/Mines | Met a Derelict who couldn't figure out how to use a Trap Extractor 2888 | -9/Mines | Assembled infested the area 3073 | -9/Mines | Learned Materials terminal intel 3170 | -9/Mines | Build established: Hauler-Mutant 3325 | -9/Mines | Discovered new exit (range 14) 3436 | -9/Mines | Discovered new exit (range 10) 3713 | -9/Mines | Core integrity fell below 20% 4047 | -9/Mines | Destroyed by G-47 Trooper with Particle Gun Last Messages --------------- 03590_ Acquired 7 matter. 03732_ G-47 Trooper destroyed. 03747_ G-34 Mercenary knocked back. 03768_ G-34 Mercenary destroyed. 03775_ Acquired 39 matter. 03780_ Acquired 9 matter. 03999_ Acquired 29 matter. 04028_ Acquired 7 matter. 04041_ C-30 ARC bursts open, deploying its payload. 04041_ S-10 Pest unfolds itself. 04042_ S-10 Pest destroyed. 04042_ K-01 Serf destroyed. 04043_ C-30 ARC bursts open, deploying its payload. 04043_ G-47 Trooper unfolds itself. 04043_ G-34 Mercenary unfolds itself. 04044_ G-34 Mercenary destroyed. 04044_ S-10 Pest destroyed. 04044_ G-34 Mercenary destroyed. 04044_ T-07 Excavator destroyed. 04044_ K-01 Serf destroyed. Map ----- +----------------------------------------------------+ | ## #????????????????????# ??????????????????# #### | | #????????????????????# ?????????????????## ## | | ####??????????????????#?? ????????????????## | | #???????????????????? ?????#?##?????????# | | #???????????????????? ???? # #?????????## ## | | ?????????????????????? ???? #??????????##### | | ?????????????????????? ???# #??????????????## | | #?????????????????????"" ???# #???????????????## | | #????????????????????""" #??# #???############## | | #??????????????????? """ ??# #???# =*|% | | #????????????????????% ?# #???# """ """= | | #?????????????????????? ? #???# """ """! | | #????????????????????????# % #??# """ """ | | #??????????????????????????#= ### """ """ | | #??????????????????????????#=g =% % < | | #??????????????????????????#%%!! ! % % """ """ | | ??????????????????????????? %% ### """ """ | | ??????????????????????????? = #??# """ """ | | ##???????????????????????## #??# """ """ | | #???????????????????## * #??# =%! | | ##??????????????????????# !%% #??# ==* | | #???????????????????????# = #???############## | | ##??????????????????????## ] ##???????????????? | | #??????????????????????## #???????????????? | | #?????????????????????## #???????????????? | | ##??????????????#####?## @ = ########??####???? | | #???????????????# ### * !### #### ##### | | ????????????????# ## ! # < ## ## | | ????????????????##! #### # % | | ?????????????????## #??### ## % % | | ??????????????????## ###### ## * ! = | | #??????????????????## ## ## ####### | | ### ##?????????????# ## # ##?????## | | #?????????????# ### #### #???????## | | "" #?????????????####?# ##????????#### | | "" ##??????????????????# #????????????? | | "" ##???????????????????##### #????????????? | | ##????????????????????????# ##????????????? | | ####?????????????????????????## ###?????????????? | | ??????????????????????????????####???????????????? | | ?????????????????????????????????????????????????? | | | | | | | | | | | | | | | | | | | +----------------------------------------------------+ Best States ------------- Heat Dissipation 25 Energy Generation 14 Energy Capacity 265 Matter Stores 300 Matter Capacity 300 Sight Range 16 Terrain Scan Density 10 Evasion (%) 40 Recoil Reduction 1 Item Schematics ----------------- None Robot Schematics ------------------ O-16 Technician | -10/Materials | Hacked S-10 Pest | -10/Materials | Hacked Fabricated ------------ Nothing Alien Tech Used ----------------- None Achievements -------------- None Challenges ------------ None Game ------ Seed SniperNodeBeam Manual? 0 Play Time 00:25:09 Cumulative 296.9 hours Start 2019.11.20 @ 01:10:03 End 2019.11.20 @ 01:29:28 Sessions 1 Manual Loads 0 Difficulty Rogue Special Mode None Game No. 225 Rogue 225 Adventurer 0 Explorer 0 Win Type - Total 3 Types 3/0/0/0/0/0/0 Lore% 74 Gallery% 80 Achievement% 59 Wizard Run 0 Options --------- ASCII 0 Keyboard 0 Movement Mouse Keybinds 1 Fullscreen 2 Font 24/Smallcaps Map View 76x50 Tactical HUD 1 Map Filters NONE Filters NONE Steam 1 RUN: 570f438f-4a25-4e8b-b51b-189fec2ae73e